bitfinex/quotes_SOLUSD_20241127
["timestamp","ask_amount","ask_price","bid_price","bid_amount"]
[1732736135777,27.99164278,239.92,239.82,7.99164278]
[1732736137638,27.99164278,239.92,239.81,2.39078095]
[1732736137846,27.99164278,239.92,239.83,7.99164278]
[1732736138659,7.99164278,239.92,239.83,7.99164278]
[1732736139047,15.9415,239.97,239.87,7.99164278]
[1732736139247,15.9415,239.97,239.89,7.99164278]
[1732736140162,7.99164278,239.99,239.89,7.99164278]
[1732736140346,20.0,239.99,239.91,7.99164278]
[1732736140955,7.99164278,239.93,239.81,2.39078095]
[1732736141253,7.99164278,239.93,239.84,7.99164278]
[1732736142249,7.99164278,239.91,239.82,7.99164278]
[1732736145746,7.99164278,239.93,239.84,7.99164278]
[1732736146272,7.99164278,239.91,239.84,7.99164278]
[1732736147267,7.99164278,239.91,239.81,2.39078095]
[1732736147486,7.99164278,239.91,239.83,7.99164278]
[1732736147952,23.776884,239.98,239.83,7.99164278]
[1732736148157,7.99164278,239.92,239.83,7.99164278]
[1732736149083,20.0,239.95,239.85,7.99164278]
[1732736149253,1.38799751,240.0,239.87,7.99164278]
[1732736149572,7.99164278,239.99,239.91,7.99164278]
[1732736149787,7.99164278,239.99,239.85,20.0]
[1732736149954,7.99164278,239.92,239.84,7.99164278]
[1732736152278,12.50788149,239.93,239.84,12.50788149]
[1732736155286,12.50788149,239.91,239.82,12.50788149]
[1732736155580,12.50788149,239.89,239.82,12.50788149]
[1732736155778,12.50788149,239.89,239.81,2.39078095]
[1732736158462,16.1847,239.99,239.85,12.50788149]
[1732736158785,12.50788149,239.94,239.85,12.50788149]
[1732736160677,17.5874253,239.99,239.89,12.50788149]
[1732736160678,32.50788149,239.96,239.89,12.50788149]
[1732736162877,20.0,239.96,239.89,12.50788149]
[1732736163182,20.0,239.95,239.89,12.50788149]
[1732736164558,20.0,239.95,239.84,4.1694]
[1732736164559,32.50788149,239.96,239.87,12.50788149]
[1732736165782,32.50788149,239.96,239.89,12.50788149]
[1732736168364,32.50788149,239.96,239.87,12.50788149]
[1732736168681,16.1847,239.99,239.91,12.50788149]
[1732736169464,12.50788149,239.98,239.85,6.4607]
[1732736169775,12.50788149,239.98,239.88,12.50788149]
[1732736170363,12.50788149,239.98,239.85,6.4607]
[1732736170581,12.50788149,239.96,239.88,12.50788149]
[1732736172285,12.50788149,239.94,239.86,12.50788149]
[1732736172473,8.00484338,239.93,239.85,8.00484338]
[1732736172790,8.00484338,239.93,239.81,2.39078095]
[1732736172978,8.00484338,239.93,239.83,8.00484338]
[1732736173286,8.00484338,239.91,239.83,8.00484338]
[1732736173501,8.00484338,239.91,239.81,2.39078095]
[1732736173788,8.00484338,239.91,239.82,8.00484338]
[1732736175000,20.0,239.95,239.82,8.00484338]
[1732736175171,8.00484338,239.9,239.82,8.00484338]
[1732736175668,8.00484338,239.9,239.83,8.00484338]
[1732736177783,8.00484338,239.9,239.81,10.39562433]
[1732736186194,6.0988,239.93,239.85,8.00484338]
[1732736186396,23.776884,239.98,239.89,8.00484338]
[1732736186397,8.00484338,239.98,239.89,8.00484338]
[1732736186601,22.2835,239.99,239.94,8.00484338]
[1732736186983,22.2835,239.99,239.84,23.776884]
[1732736187303,22.2835,239.99,239.86,100.0]
[1732736187488,22.2835,239.99,239.91,8.00484338]
[1732736189705,22.2835,239.99,239.93,8.00484338]
[1732736190202,16.1847,239.99,239.93,8.00484338]
[1732736190577,14.26704338,240.04,239.95,8.00484338]
[1732736190781,15.4587,240.05,240.01,8.00484338]
[1732736193183,15.4587,240.05,239.99,8.00484338]
[1732736194494,15.4587,240.05,239.94,8.00484338]
[1732736194683,20.0,240.02,239.94,8.00484338]
[1732736195904,20.0,240.02,239.96,8.00484338]
[1732736196097,15.4587,240.05,240.0,8.00484338]
[1732736198888,15.6713,240.12,240.04,8.00484338]
[1732736199078,15.6713,240.12,240.08,8.00484338]
[1732736200289,15.6713,240.12,240.07,12.48390759]
[1732736200503,15.6713,240.12,240.09,12.48390759]
[1732736202124,15.6713,240.12,240.07,12.48390759]
[1732736209206,15.6713,240.12,240.09,12.48390759]
[1732736209716,15.6713,240.12,240.07,12.48390759]
[1732736212500,16.5187,240.17,240.11,12.48390759]
[1732736213315,12.48390759,240.16,240.07,12.48390759]
[1732736220607,12.48390759,240.16,240.09,12.48390759]
[1732736220910,16.5187,240.17,240.09,12.48390759]
[1732736222606,16.5187,240.17,240.1,7.98797229]
[1732736223726,16.5187,240.17,240.07,4.1653]
[1732736223727,7.98797229,240.21,240.12,7.98797229]
[1732736223902,31.17127229,240.23,240.16,7.98797229]
[1732736224399,31.17127229,240.23,240.06,106.5719]
[1732736224617,7.98797229,240.21,240.06,106.5719]
[1732736224825,7.98797229,240.19,240.12,7.98797229]
[1732736225317,6.6252,240.23,240.18,7.98797229]
[1732736225506,15.0849,240.3,240.22,12.15057229]
[1732736225818,15.0849,240.3,240.27,7.98797229]
[1732736225997,15.0849,240.3,240.25,7.98797229]
[1732736227216,15.0849,240.3,240.27,7.98797229]
[1732736228609,6.1193,240.34,240.29,7.98797229]
[1732736228820,15.1377,240.36,240.29,7.98797229]
[1732736229024,15.1377,240.36,240.31,7.98797229]
[1732736229523,15.1377,240.36,240.3,7.98797229]
[1732736230020,15.1377,240.36,240.26,4.162]
[1732736230213,15.1377,240.36,240.3,7.98797229]
[1732736233036,15.1377,240.36,240.25,4.1622]
[1732736233338,15.1377,240.36,240.29,7.98797229]
[1732736234452,15.1377,240.36,240.2,10.4076]
[1732736234453,23.12567229,240.36,240.27,7.98797229]
[1732736235721,20.0,240.33,240.21,4.1628]
[1732736236038,20.0,240.33,240.26,7.98797229]
[1732736236233,23.12567229,240.36,240.26,7.98797229]
[1732736236423,20.0,240.33,240.26,7.98797229]
[1732736236835,20.0,240.33,240.28,7.98797229]
[1732736237939,20.0,240.33,240.3,7.98797229]
[1732736238841,15.1377,240.36,240.3,7.98797229]
[1732736240536,15.1377,240.36,240.32,7.98797229]
[1732736240941,15.1377,240.36,240.34,7.98797229]
[1732736241151,6.4129,240.4,240.34,7.98797229]
[1732736241319,6.4129,240.4,240.29,4.1616]
[1732736241320,6.4129,240.4,240.36,7.98797229]
[1732736241519,6.4129,240.4,240.34,7.98797229]
[1732736241719,6.4129,240.4,240.29,4.1616]
[1732736241919,6.4129,240.4,240.33,7.98797229]
[1732736242821,6.4129,240.4,240.37,7.98797229]
[1732736243241,6.4129,240.4,240.35,7.98797229]
[1732736243622,20.0,240.41,240.35,7.98797229]
[1732736244124,20.0,240.41,240.3,4.1614]
[1732736244125,20.0,240.41,240.36,7.98797229]
[1732736244724,20.0,240.41,240.34,7.98797229]
[1732736248938,15.875,240.39,240.29,100.0]
[1732736249287,15.875,240.39,240.31,7.98797229]
[1732736251353,15.875,240.39,240.33,7.98797229]
[1732736253950,15.875,240.39,240.25,6.5056]
[1732736253951,7.98797229,240.38,240.25,6.5056]
[1732736254143,7.98797229,240.38,240.28,7.98797229]
[1732736254650,7.98797229,240.38,240.3,7.98797229]
[1732736255351,23.776884,240.37,240.22,100.0]
[1732736255547,7.98797229,240.36,240.28,7.98797229]
[1732736255863,23.776884,240.37,240.28,7.98797229]
[1732736256429,20.0,240.34,240.29,7.98797229]
[1732736257238,20.0,240.33,240.25,7.98797229]
[1732736257439,20.0,240.33,240.27,7.98797229]
[1732736261958,6.1494,240.36,240.31,7.98797229]
[1732736262160,6.1494,240.36,240.34,7.98797229]
[1732736262456,7.98797229,240.41,240.34,7.98797229]
[1732736263252,20.0,240.38,240.32,7.98797229]
[1732736263442,20.0,240.38,240.3,7.98797229]
[1732736263657,16.1538,240.37,240.3,7.98797229]
[1732736264365,16.1538,240.37,240.25,4.1623]
[1732736264366,20.0,240.34,240.28,7.98797229]
[1732736264561,20.0,240.34,240.25,4.1623]
[1732736264761,20.0,240.34,240.29,7.98797229]
[1732736265244,20.0,240.34,240.21,106.20594244]
[1732736265444,20.0,240.34,240.28,7.98797229]
[1732736265952,23.776884,240.37,240.28,7.98797229]
[1732736266148,20.0,240.34,240.3,7.98797229]
[1732736267965,23.776884,240.37,240.3,7.98797229]
[1732736268180,20.0,240.34,240.3,7.98797229]
[1732736269462,20.0,240.37,240.3,7.98797229]
[1732736269844,6.5115,240.4,240.32,7.98797229]
[1732736270350,6.5115,240.4,240.34,7.98797229]
[1732736271461,7.98797229,240.43,240.34,7.98797229]
[1732736271636,16.5375,240.45,240.34,7.98797229]
[1732736271837,16.5375,240.45,240.36,7.98797229]
[1732736271838,20.0,240.42,240.36,7.98797229]
[1732736272547,20.0,240.4,240.34,7.98797229]
[1732736276075,20.0,240.42,240.36,7.98797229]
[1732736276455,20.0,240.42,240.3,26.6149]
[1732736276656,20.0,240.42,240.35,7.98797229]
[1732736276963,20.0,240.42,240.3,26.6149]
[1732736277167,20.0,240.42,240.35,7.98797229]
[1732736277670,20.0,240.42,240.37,7.98797229]
[1732736278367,20.0,240.42,240.36,7.98797229]
[1732736278872,20.0,240.42,240.31,4.1612]
[1732736279064,20.0,240.42,240.35,7.98797229]
[1732736279446,20.0,240.42,240.33,4.1608]
[1732736279661,16.5375,240.45,240.37,7.98797229]
[1732736280872,16.5375,240.45,240.39,7.98797229]
[1732736281169,6.1061,240.53,240.43,7.98797229]
[1732736281344,6.1061,240.53,240.45,7.98797229]
[1732736281543,6.1061,240.53,240.47,7.98797229]
[1732736281768,8.47745949,240.55,240.45,7.98797229]
[1732736282768,20.0,240.52,240.45,7.98797229]
[1732736283859,20.0,240.54,240.47,7.98797229]
[1732736284065,24.2663712,240.55,240.47,7.98797229]
[1732736284459,0.4894872,240.55,240.47,7.98797229]
[1732736285665,20.0,240.53,240.47,7.98797229]
[1732736289651,0.4894872,240.55,240.51,7.98797229]
[1732736289852,0.4894872,240.55,240.54,7.98797229]
[1732736290369,0.4894872,240.55,240.5,4.158]
[1732736290549,0.4894872,240.55,240.54,7.98797229]
[1732736292362,0.4894872,240.55,240.54,12.14527229]
[1732736292864,0.4894872,240.55,240.54,4.1573]
[1732736293063,0.4894872,240.55,240.54,7.98797229]
[1732736299082,0.4894872,240.55,240.54,112.14527229]
[1732736299791,0.4894872,240.55,240.54,7.98797229]
[1732736300684,0.4894872,240.55,240.49,4.1581]
[1732736300878,0.4894872,240.55,240.53,7.98797229]
[1732736302969,0.4894872,240.55,240.52,7.98797229]
[1732736305882,0.4894872,240.55,240.5,7.98797229]
[1732736306590,20.4894872,240.55,240.48,7.98797229]
[1732736309275,20.4894872,240.55,240.42,20.0]
[1732736309276,23.776884,240.54,240.42,20.0]
[1732736309504,20.4894872,240.55,240.48,7.98797229]
[1732736311291,0.4894872,240.55,240.48,7.98797229]
[1732736311473,0.4894872,240.55,240.5,7.98797229]
[1732736311673,0.4894872,240.55,240.44,4.1589]
[1732736311674,20.4894872,240.55,240.48,7.98797229]
[1732736313971,0.4894872,240.55,240.48,7.98797229]
[1732736316092,0.4894872,240.55,240.46,4.1586]
[1732736316295,0.4894872,240.55,240.48,7.98797229]
[1732736318001,8.47745949,240.55,240.46,7.98797229]
[1732736318296,0.4894872,240.55,240.48,7.98797229]
[1732736319995,0.4894872,240.55,240.5,7.98797229]
[1732736320180,0.4894872,240.55,240.46,4.1586]
[1732736320181,0.4894872,240.55,240.52,7.98797229]
[1732736322002,0.4894872,240.55,240.5,7.98797229]
[1732736323193,0.4894872,240.55,240.52,7.98797229]
[1732736325702,0.4894872,240.55,240.46,4.1586]
[1732736325894,20.4894872,240.55,240.5,7.98797229]
[1732736326486,20.4894872,240.55,240.48,7.98797229]
[1732736328187,20.4894872,240.55,240.5,7.98797229]
[1732736328396,0.4894872,240.55,240.5,7.98797229]
[1732736329788,18.4894872,240.56,240.5,7.98797229]
[1732736330520,15.1152,240.6,240.5,7.98797229]
[1732736330821,23.10317229,240.6,240.5,7.98797229]
[1732736331307,7.98797229,240.58,240.5,7.98797229]
[1732736331826,20.0,240.55,240.5,7.98797229]
[1732736332290,20.0,240.55,240.47,7.98797229]
[1732736332490,20.0,240.53,240.47,7.98797229]
[1732736332692,20.0,240.53,240.49,7.98797229]
[1732736333001,20.0,240.55,240.49,7.98797229]
[1732736333394,20.0,240.54,240.49,7.98797229]
[1732736333797,20.0,240.54,240.4,111.22872276]
[1732736334113,20.0,240.54,240.48,7.98797229]
[1732736334611,20.0,240.53,240.48,7.98797229]
[1732736335010,20.0,240.54,240.48,7.98797229]
[1732736336090,20.0,240.54,240.46,7.98797229]
[1732736336091,20.0,240.52,240.46,7.98797229]
[1732736336697,7.98797229,240.55,240.46,7.98797229]
[1732736337117,20.0,240.52,240.46,7.98797229]
[1732736342226,20.0,240.54,240.48,7.98797229]
[1732736345425,20.0,240.54,240.4,15.90480168]
[1732736345426,23.776884,240.53,240.46,7.98797229]
[1732736346092,20.0,240.54,240.48,7.98797229]
[1732736346695,20.0,240.55,240.48,7.98797229]
[1732736346920,20.0,240.55,240.5,7.98797229]
[1732736347115,20.0,240.57,240.5,7.98797229]
[1732736347616,20.0,240.57,240.52,7.98797229]
[1732736348823,20.0,240.57,240.51,7.98797229]
[1732736351325,20.0,240.57,240.49,7.98797229]
[1732736351497,20.0,240.57,240.46,4.1586]
[1732736351697,20.0,240.57,240.49,7.98797229]
[1732736351917,20.0,240.57,240.46,4.1586]
[1732736352111,20.0,240.57,240.49,7.98797229]
[1732736353631,20.0,240.57,240.51,7.98797229]
[1732736353928,23.10317229,240.6,240.46,12.95239449]
[1732736353929,15.1152,240.6,240.55,7.98797229]
[1732736354225,6.0296,240.63,240.57,7.98797229]
[1732736354425,16.5878,240.66,240.48,59.41332417]
[1732736354426,16.5878,240.66,240.59,7.98797229]
[1732736355533,24.57577229,240.66,240.57,7.98797229]
[1732736355830,20.0,240.63,240.58,7.98797229]
[1732736358132,20.0,240.63,240.55,4.157]
[1732736358428,20.0,240.63,240.58,7.98797229]
[1732736359909,20.0,240.63,240.55,4.1571]
[1732736360109,20.0,240.63,240.57,7.98797229]
[1732736360442,20.0,240.63,240.58,7.98797229]
[1732736361230,20.0,240.63,240.54,4.1573]
[1732736361231,20.0,240.62,240.55,7.98797229]
[1732736361927,27.98797229,240.63,240.54,7.98797229]
[1732736362131,20.0,240.62,240.58,7.98797229]
[1732736362319,20.0,240.63,240.58,7.98797229]
[1732736362833,8.23032469,240.67,240.58,7.98797229]
[1732736362834,20.0,240.64,240.58,7.98797229]
[1732736364231,20.0,240.64,240.56,7.98797229]
[1732736364418,20.0,240.62,240.56,7.98797229]
[1732736366307,7.98797229,240.65,240.52,0.82913573]
[1732736366524,7.98797229,240.65,240.57,7.98797229]
[1732736368341,7.98797229,240.65,240.55,7.98797229]
[1732736368509,7.98797229,240.61,240.52,100.0]
[1732736368713,7.98797229,240.57,240.48,6.1213]
[1732736369018,7.98797229,240.57,240.48,7.98797229]
[1732736371516,20.0,240.58,240.5,7.98797229]
[1732736371839,6.0886,240.61,240.5,7.98797229]
[1732736371840,20.0,240.56,240.5,7.98797229]
[1732736373532,20.0,240.56,240.49,7.98797229]
[1732736373935,6.4413,240.69,240.53,7.98797229]
[1732736374136,7.98797229,240.64,240.55,7.98797229]
[1732736375313,20.0,240.61,240.55,7.98797229]
[1732736376036,20.0,240.59,240.49,4.1581]
[1732736376242,20.0,240.59,240.53,7.98797229]
[1732736376534,20.0,240.59,240.51,7.98797229]
[1732736376920,20.0,240.59,240.48,6.17726834]
[1732736377117,20.0,240.59,240.51,7.98797229]
[1732736378324,20.0,240.57,240.48,6.17726834]
[1732736378525,20.0,240.57,240.5,7.98797229]
[1732736378940,20.0,240.55,240.5,7.98797229]
[1732736379640,20.0,240.63,240.5,7.98797229]
[1732736379821,20.0,240.55,240.5,7.98797229]
[1732736387927,20.0,240.55,240.48,7.98797229]
[1732736389034,20.0,240.53,240.44,4.1588]
[1732736389245,20.0,240.53,240.46,7.98797229]
[1732736390152,20.0,240.53,240.48,7.98797229]
[1732736392540,20.0,240.54,240.48,7.98797229]
[1732736393856,20.0,240.54,240.44,4.159]
[1732736394045,20.0,240.54,240.46,7.98797229]
[1732736394430,20.0,240.54,240.48,7.98797229]
[1732736395553,20.0,240.54,240.45,4.1588]
[1732736395763,20.0,240.54,240.48,7.98797229]
[1732736396052,20.0,240.54,240.45,4.1588]
[1732736396259,20.0,240.54,240.48,7.98797229]
[1732736400059,20.0,240.54,240.43,4.1592]
[1732736400263,7.98797229,240.44,240.39,12.99445954]
[1732736400440,7.98797229,240.42,240.37,12.99445954]
[1732736400763,27.98797229,240.44,240.33,20.98243183]
[1732736400944,27.98797229,240.44,240.33,12.99445954]
[1732736401158,27.98797229,240.44,240.35,7.98797229]
[1732736401768,20.0,240.44,240.37,7.98797229]
[1732736401974,20.0,240.43,240.37,7.98797229]
[1732736402260,20.0,240.43,240.39,7.98797229]
[1732736402457,20.0,240.44,240.37,7.98797229]
[1732736402674,27.98797229,240.44,240.35,7.98797229]
[1732736403469,7.98797229,240.42,240.33,7.98797229]
[1732736405550,7.98797229,240.42,240.3,100.0]
[1732736405743,20.0,240.44,240.31,7.98797229]
[1732736405744,7.98797229,240.4,240.31,7.98797229]
[1732736406351,7.98797229,240.42,240.33,7.98797229]
[1732736408069,20.0,240.44,240.33,7.98797229]
[1732736408272,20.0,240.4,240.33,7.98797229]
[1732736411464,15.133,240.47,240.39,7.98797229]
[1732736411662,15.133,240.47,240.41,7.98797229]
[1732736411870,7.98797229,240.48,240.41,7.98797229]
[1732736412252,7.98797229,240.5,240.36,31.95188916]
[1732736412451,7.98797229,240.5,240.42,7.98797229]
[1732736412668,6.4188,240.51,240.44,7.98797229]
[1732736412852,6.4188,240.51,240.46,7.98797229]
[1732736413459,7.98797229,240.55,240.46,7.98797229]
[1732736414664,23.776884,240.51,240.46,7.98797229]
[1732736416048,23.776884,240.51,240.41,116.4466]
[1732736416249,23.776884,240.51,240.46,7.98797229]
[1732736416769,23.776884,240.48,240.4,114.44997229]
[1732736417277,20.0,240.44,240.35,120.3997]
[1732736417566,20.0,240.44,240.39,7.98797229]
[1732736417870,20.0,240.45,240.39,7.98797229]
[1732736418182,23.776884,240.48,240.43,7.98797229]
[1732736418364,23.776884,240.5,240.45,7.98797229]
[1732736418551,20.0,240.49,240.45,7.98797229]
[1732736419072,20.0,240.49,240.44,7.98797229]
[1732736420876,23.776884,240.52,240.48,7.98797229]
[1732736421053,24.07887229,240.57,240.41,4.1594]
[1732736421054,16.0909,240.57,240.51,7.98797229]
[1732736421250,16.0909,240.57,240.49,7.98797229]
[1732736421767,24.07887229,240.57,240.49,7.98797229]
[1732736422269,23.776884,240.56,240.49,7.98797229]
[1732736423371,23.776884,240.56,240.48,7.98797229]
[1732736423884,23.776884,240.56,240.5,7.98797229]
[1732736427661,23.776884,240.56,240.44,110.5486]
[1732736427958,23.776884,240.58,240.5,7.98797229]
[1732736428356,7.98797229,240.57,240.49,7.98797229]
[1732736429159,23.776884,240.56,240.45,115.4141]
[1732736429397,23.776884,240.56,240.49,7.98797229]
[1732736430673,23.776884,240.57,240.49,7.98797229]
[1732736431256,23.776884,240.57,240.51,7.98797229]
[1732736431455,23.776884,240.57,240.45,115.4141]
[1732736431456,23.776884,240.57,240.53,7.98797229]
[1732736432183,23.776884,240.59,240.51,7.98797229]
[1732736435483,23.776884,240.59,240.46,100.0]
[1732736435778,23.776884,240.59,240.5,7.98797229]
[1732736436083,23.776884,240.59,240.54,7.98797229]
[1732736436269,20.0,240.58,240.52,7.98797229]
[1732736436475,23.776884,240.61,240.52,7.98797229]
[1732736436772,23.776884,240.59,240.52,7.98797229]
[1732736437081,20.0,240.58,240.54,7.98797229]
[1732736438073,20.0,240.58,240.52,7.98797229]
[1732736438860,20.0,240.58,240.49,100.0]
[1732736439066,20.0,240.58,240.5,7.98797229]
[1732736440378,23.776884,240.57,240.49,100.0]
[1732736440571,23.776884,240.57,240.49,107.98797229]
[1732736441971,23.776884,240.57,240.51,7.98797229]
[1732736443759,23.776884,240.57,240.46,0.82932404]
[1732736443985,23.776884,240.57,240.5,7.98797229]
[1732736445263,23.776884,240.57,240.45,15.4141]
[1732736445487,23.776884,240.57,240.49,7.98797229]
[1732736447466,23.776884,240.53,240.38,120.4904]
[1732736447674,23.776884,240.53,240.47,7.98797229]
[1732736451077,23.776884,240.53,240.49,7.98797229]
[1732736451469,23.776884,240.53,240.48,7.98797229]
[1732736451971,20.0,240.6,240.48,7.98797229]
[1732736452296,20.0,240.55,240.48,7.98797229]
[1732736452589,20.0,240.54,240.48,7.98797229]
[1732736453069,20.0,240.55,240.48,7.98797229]
[1732736454082,23.776884,240.54,240.48,7.98797229]
[1732736456276,23.776884,240.54,240.4,104.98917591]
[1732736456598,23.776884,240.54,240.47,7.98797229]
[1732736463698,23.776884,240.54,240.45,7.98797229]
[1732736464693,23.776884,240.54,240.47,7.98797229]
[1732736466801,20.0,240.6,240.49,7.98797229]
[1732736467009,20.0,240.56,240.49,7.98797229]
[1732736467187,23.776884,240.55,240.49,7.98797229]
[1732736467379,20.0,240.56,240.51,7.98797229]
[1732736468999,16.6209,240.63,240.53,7.98797229]
[1732736469192,7.98797229,240.62,240.53,7.98797229]
[1732736470099,7.98797229,240.62,240.49,0.82923144]
[1732736470405,7.98797229,240.62,240.48,11.62860873]
[1732736470697,23.776884,240.61,240.48,11.62860873]
[1732736470902,23.776884,240.61,240.52,7.98797229]
[1732736472582,23.776884,240.61,240.48,11.62860873]
[1732736472583,23.776884,240.61,240.48,111.62860873]
[1732736472799,7.98797229,240.6,240.51,7.98797229]
[1732736474202,23.776884,240.59,240.51,7.98797229]
[1732736474581,23.776884,240.59,240.48,106.2474]
[1732736474783,23.776884,240.59,240.5,7.98797229]
[1732736475488,20.0,240.56,240.46,12.96603672]
[1732736475694,23.776884,240.53,240.44,13.38313324]
[1732736475899,23.776884,240.53,240.43,105.39837261]
[1732736476197,23.776884,240.53,240.44,7.98797229]
[1732736476403,20.0,240.56,240.48,7.98797229]
[1732736476404,23.776884,240.55,240.48,7.98797229]
[1732736477297,23.776884,240.53,240.44,7.98797229]
[1732736479283,7.98797229,240.52,240.44,7.98797229]
[1732736479484,23.776884,240.51,240.41,105.39968044]
[1732736479701,23.776884,240.51,240.42,7.98797229]
[1732736481578,23.776884,240.51,240.44,7.98797229]
[1732736481784,7.98797229,240.54,240.44,7.98797229]
[1732736482010,20.0,240.5,240.44,7.98797229]
[1732736482890,20.0,240.5,240.41,100.0]
[1732736483085,20.0,240.5,240.44,7.98797229]
[1732736484897,20.0,240.5,240.41,100.0]
[1732736485210,20.0,240.5,240.43,7.98797229]
[1732736487605,20.0,240.5,240.45,7.98797229]
[1732736492694,20.0,240.5,240.43,7.98797229]
[1732736497293,20.0,240.5,240.44,0.04004243]
[1732736498408,20.0,240.51,240.44,0.04004243]
[1732736498719,23.776884,240.5,240.44,0.04004243]
[1732736499504,23.776884,240.5,240.44,8.02801472]
[1732736499911,23.776884,240.5,240.44,0.04004243]
[1732736501312,20.0,240.47,240.44,0.04004243]
[1732736503913,23.776884,240.5,240.45,7.98797229]
[1732736504450,7.98797229,240.52,240.44,0.04004243]
[1732736504726,23.776884,240.48,240.44,0.04004243]
[1732736511827,20.0,240.45,240.44,0.04004243]
[1732736512123,43.776884,240.45,240.44,0.04004243]
[1732736512914,43.776884,240.45,240.44,4.243e-05]
[1732736516634,6.0078,240.41,240.24,15.8455]
[1732736516814,6.0078,240.41,240.2,6.2397]
[1732736516815,7.98797229,240.31,240.2,6.2397]
[1732736517127,7.98797229,240.31,240.23,7.98797229]
[1732736517331,7.98797229,240.29,240.21,7.98797229]
[1732736517535,23.776884,240.28,240.2,6.2397]
[1732736517734,23.776884,240.28,240.2,14.22767229]
[1732736518610,7.98797229,240.31,240.22,7.98797229]
[1732736518810,20.0,240.28,240.22,7.98797229]
[1732736519307,20.0,240.28,240.2,6.2397]
[1732736519510,20.0,240.28,240.21,7.98797229]
[1732736521434,31.76485629,240.27,240.2,6.2397]
[1732736522533,23.776884,240.27,240.2,6.2397]
[1732736522731,23.776884,240.27,240.21,7.98797229]
[1732736522939,20.0,240.33,240.23,7.98797229]
[1732736523112,20.0,240.28,240.14,100.0]
[1732736523314,20.0,240.28,240.21,7.98797229]
[1732736523514,20.0,240.28,240.23,7.98797229]
[1732736526627,20.0,240.28,240.21,7.98797229]
[1732736526973,27.98797229,240.29,240.17,106.6639]
[1732736527113,27.98797229,240.29,240.2,7.98797229]
[1732736528015,27.98797229,240.29,240.17,106.6639]
[1732736528016,7.98797229,240.27,240.17,106.6639]
[1732736528337,7.98797229,240.27,240.12,48.60158916]
[1732736528338,23.776884,240.23,240.12,48.60158916]
[1732736528518,23.776884,240.23,240.15,7.98797229]
[1732736528836,31.76485629,240.23,240.15,7.98797229]
[1732736529039,31.76485629,240.23,240.12,16.6497]
[1732736529344,31.76485629,240.23,240.15,7.98797229]
[1732736530930,23.776884,240.23,240.17,7.98797229]
[1732736531340,16.2509,240.34,240.22,7.98797229]
[1732736531543,7.98797229,240.33,240.16,20.0]
[1732736531719,7.98797229,240.33,240.24,7.98797229]
[1732736532148,16.2509,240.34,240.24,7.98797229]
[1732736532336,24.23887229,240.34,240.24,7.98797229]
[1732736532524,20.0,240.31,240.24,7.98797229]
[1732736532849,23.776884,240.3,240.24,7.98797229]
[1732736533024,24.23887229,240.34,240.16,20.0]
[1732736533025,16.2509,240.34,240.26,7.98797229]
[1732736534032,16.2509,240.34,240.18,100.0]
[1732736534240,20.0,240.31,240.25,7.98797229]
[1732736534650,20.0,240.3,240.23,7.98797229]
[1732736536346,20.0,240.3,240.21,7.98797229]
[1732736538230,20.0,240.28,240.21,7.98797229]
[1732736538847,20.0,240.3,240.25,7.98797229]
[1732736539150,20.0,240.31,240.26,7.98797229]
[1732736546956,20.0,240.3,240.24,7.98797229]
[1732736552763,23.776884,240.29,240.22,7.98797229]
[1732736552962,23.776884,240.29,240.15,6.1361]
[1732736552963,20.0,240.26,240.15,6.1361]
[1732736553143,20.0,240.26,240.19,7.98797229]
[1732736553331,20.0,240.26,240.15,6.1361]
[1732736553536,20.0,240.24,240.17,7.98797229]
[1732736554066,20.0,240.24,240.19,7.98797229]
[1732736557947,20.0,240.26,240.19,7.98797229]
[1732736558154,23.776884,240.25,240.19,7.98797229]
[1732736562852,23.776884,240.25,240.12,148.60158916]
[1732736563161,23.776884,240.25,240.18,7.98797229]
[1732736564263,23.776884,240.21,240.16,7.98797229]
[1732736566358,15.1725,240.33,240.2,7.98797229]
[1732736566664,15.1725,240.33,240.26,7.98797229]
[1732736567540,20.0,240.3,240.26,7.98797229]
[1732736568342,20.0,240.3,240.24,7.98797229]